[Event "Titled Tuesday Blitz August 1 Early 2023"]
[White "Garcia Almaguer, Juan Manuel"]
[Black "SicilianPanzer"]
[WhiteFideId "5110491"]
[WhiteElo "2462"]
[BlackElo "2314"]
[Result "1-0"]
[Round "5"]
[TimeControl "180+1"]
[Date "2023.08.01"]
[WhiteClock "0:00:15"]
[BlackClock "0:00:00"]
[Board "168"]

1. e4 {[%clk 0:02:54]}  c5 {[%clk 0:02:58]} 2. Nf3 {[%clk 0:02:54]}  Nc6 {[%clk 0:02:58]} 3. d3 {[%clk 0:02:52]}  g6 {[%clk 0:02:57]} 4. g3 {[%clk 0:02:52]}  Bg7 {[%clk 0:02:56]} 5. Bg2 {[%clk 0:02:52]}  d6 {[%clk 0:02:56]} 6. O-O {[%clk 0:02:51]}  Nf6 {[%clk 0:02:56]} 7. Re1 {[%clk 0:02:50]}  O-O {[%clk 0:02:55]} 8. a4 {[%clk 0:02:49]}  a6 {[%clk 0:02:52]} 9. Nc3 {[%clk 0:02:49]}  Rb8 {[%clk 0:02:51]} 10. Bg5 {[%clk 0:02:45]}  b5 {[%clk 0:02:41]} 11. axb5 {[%clk 0:02:42]}  axb5 {[%clk 0:02:41]} 12. Qd2 {[%clk 0:02:39]}  Re8 {[%clk 0:02:28]} 13. h3 {[%clk 0:01:57]}  Nd4 {[%clk 0:02:02]} 14. Bh6 {[%clk 0:01:30]}  Nxf3+ {[%clk 0:01:36]} 15. Bxf3 {[%clk 0:01:31]}  Bxh3 {[%clk 0:01:34]} 16. e5 {[%clk 0:01:11]}  Nd7 {[%clk 0:01:11]} 17. Bxg7 {[%clk 0:01:00]}  Kxg7 {[%clk 0:01:11]} 18. Kh2 {[%clk 0:00:45]}  Be6 {[%clk 0:01:01]} 19. d4 {[%clk 0:00:44]}  cxd4 {[%clk 0:00:59]} 20. Qxd4 {[%clk 0:00:43]}  Nxe5 {[%clk 0:00:53]} 21. Rxe5 {[%clk 0:00:41]}  dxe5 {[%clk 0:00:52]} 22. Qxe5+ {[%clk 0:00:42]}  Kg8 {[%clk 0:00:52]} 23. Rd1 {[%clk 0:00:37]}  Qb6 {[%clk 0:00:48]} 24. Kg2 {[%clk 0:00:34]}  b4 {[%clk 0:00:40]} 25. Ne4 {[%clk 0:00:33]}  Rbd8 {[%clk 0:00:33]} 26. Rh1 {[%clk 0:00:32]}  Rd5 {[%clk 0:00:27]} 27. Qf4 {[%clk 0:00:32]}  Rf5 {[%clk 0:00:27]} 28. Qh6 {[%clk 0:00:32]}  Qd4 {[%clk 0:00:16]} 29. Qxh7+ {[%clk 0:00:17]}  Kf8 {[%clk 0:00:16]} 30. Qh8+ {[%clk 0:00:16]}  Qxh8 {[%clk 0:00:16]} 31. Rxh8+ {[%clk 0:00:17]}  Kg7 {[%clk 0:00:16]} 32. Rxe8 {[%clk 0:00:18]}  Bd5 {[%clk 0:00:10]} 33. Nd2 {[%clk 0:00:13]}  Bxf3+ {[%clk 0:00:06]} 34. Nxf3 {[%clk 0:00:14]}  Rc5 {[%clk 0:00:06]} 35. Rxe7 {[%clk 0:00:13]}  Rxc2 {[%clk 0:00:05]} 36. b3 {[%clk 0:00:14]}  Rc3 {[%clk 0:00:05]} 37. Re3 {[%clk 0:00:14]}  Rc2 {[%clk 0:00:03]} 38. Ne5 {[%clk 0:00:14]}  f6 {[%clk 0:00:03]} 39. Nd3 {[%clk 0:00:14]}  Rc3 {[%clk 0:00:00]} 40. Nxb4 {[%clk 0:00:15]} 1-0


[Site "https://www.chess.com"]

[Event "Titled Tuesday Blitz August 1 Early 2023"]
[White "Necromon"]
[Black "ChesscularGodofchess"]
[WhiteElo "2448"]
[BlackElo "2220"]
[Result "1-0"]
[Round "5"]
[TimeControl "180+1"]
[Date "2023.08.01"]
[WhiteClock "0:00:24"]
[BlackClock "0:00:00"]
[Board "173"]

1. Nf3 {[%clk 0:03:00]}  d5 {[%clk 0:02:57]} 2. b3 {[%clk 0:03:00]}  Nf6 {[%clk 0:02:56]} 3. Bb2 {[%clk 0:03:00]}  c5 {[%clk 0:02:55]} 4. e3 {[%clk 0:02:58]}  e6 {[%clk 0:02:53]} 5. c4 {[%clk 0:02:57]}  Be7 {[%clk 0:02:51]} 6. Be2 {[%clk 0:02:56]}  O-O {[%clk 0:02:51]} 7. O-O {[%clk 0:02:57]}  Nc6 {[%clk 0:02:48]} 8. cxd5 {[%clk 0:02:57]}  exd5 {[%clk 0:02:47]} 9. d4 {[%clk 0:02:57]}  b6 {[%clk 0:02:47]} 10. Nc3 {[%clk 0:02:55]}  h6 {[%clk 0:02:38]} 11. Rc1 {[%clk 0:02:48]}  Be6 {[%clk 0:02:36]} 12. dxc5 {[%clk 0:02:46]}  bxc5 {[%clk 0:02:36]} 13. Na4 {[%clk 0:02:45]}  Ne4 {[%clk 0:02:25]} 14. Nd2 {[%clk 0:02:39]}  Qa5 {[%clk 0:02:17]} 15. Nxe4 {[%clk 0:02:32]}  dxe4 {[%clk 0:02:17]} 16. Bc4 {[%clk 0:02:18]}  Rfd8 {[%clk 0:01:53]} 17. Qe2 {[%clk 0:02:12]}  Bf5 {[%clk 0:01:46]} 18. Rfd1 {[%clk 0:02:04]}  Nb4 {[%clk 0:01:39]} 19. Bc3 {[%clk 0:01:33]}  Rxd1+ {[%clk 0:01:24]} 20. Rxd1 {[%clk 0:01:32]}  Rd8 {[%clk 0:01:24]} 21. h3 {[%clk 0:01:21]}  Rxd1+ {[%clk 0:01:19]} 22. Qxd1 {[%clk 0:01:21]}  Qc7 {[%clk 0:01:07]} 23. Bxb4 {[%clk 0:01:15]}  cxb4 {[%clk 0:01:08]} 24. Qd5 {[%clk 0:01:15]}  Bg6 {[%clk 0:00:59]} 25. Qd4 {[%clk 0:00:51]}  Bf6 {[%clk 0:00:48]} 26. Qd5 {[%clk 0:00:51]}  Be7 {[%clk 0:00:42]} 27. Qa8+ {[%clk 0:00:43]}  Kh7 {[%clk 0:00:36]} 28. Qe8 {[%clk 0:00:43]}  Qd6 {[%clk 0:00:28]} 29. Bxf7 {[%clk 0:00:33]}  Qd1+ {[%clk 0:00:27]} 30. Kh2 {[%clk 0:00:33]}  Bd6+ {[%clk 0:00:24]} 31. g3 {[%clk 0:00:34]}  Bxf7 {[%clk 0:00:20]} 32. Qxf7 {[%clk 0:00:33]}  Qd2 {[%clk 0:00:18]} 33. Kg2 {[%clk 0:00:30]}  Qxa2 {[%clk 0:00:16]} 34. Qf5+ {[%clk 0:00:28]}  Kh8 {[%clk 0:00:16]} 35. Qc8+ {[%clk 0:00:26]}  Kh7 {[%clk 0:00:16]} 36. Qe6 {[%clk 0:00:27]}  Bf8 {[%clk 0:00:11]} 37. Qxe4+ {[%clk 0:00:27]}  Kh8 {[%clk 0:00:12]} 38. Qf5 {[%clk 0:00:25]}  Kg8 {[%clk 0:00:10]} 39. Qe6+ {[%clk 0:00:25]}  Kh7 {[%clk 0:00:10]} 40. g4 {[%clk 0:00:26]}  Qd2 {[%clk 0:00:08]} 41. h4 {[%clk 0:00:24]}  Bd6 {[%clk 0:00:06]} 42. g5 {[%clk 0:00:23]}  hxg5 {[%clk 0:00:05]} 43. hxg5 {[%clk 0:00:24]}  Qd1 {[%clk 0:00:00]} 44. Qe4+ {[%clk 0:00:24]} 1-0


[Site "https://www.chess.com"]

[Event "Titled Tuesday Blitz August 1 Early 2023"]
[White "le-castor-faineant"]
[Black "Ventura Bolet, Maxim"]
[BlackFideId "22238824"]
[WhiteElo "2197"]
[BlackElo "2432"]
[Result "0-1"]
[Round "5"]
[TimeControl "180+1"]
[Date "2023.08.01"]
[WhiteClock "0:00:58"]
[BlackClock "0:01:24"]
[Board "175"]

1. e4 {[%clk 0:02:56]}  c5 {[%clk 0:02:59]} 2. Nf3 {[%clk 0:02:55]}  a6 {[%clk 0:02:58]} 3. c4 {[%clk 0:02:52]}  e6 {[%clk 0:02:57]} 4. Nc3 {[%clk 0:02:50]}  Qc7 {[%clk 0:02:55]} 5. d4 {[%clk 0:02:50]}  cxd4 {[%clk 0:02:55]} 6. Nxd4 {[%clk 0:02:50]}  Bb4 {[%clk 0:02:48]} 7. Bd2 {[%clk 0:02:42]}  Nc6 {[%clk 0:02:45]} 8. Nc2 {[%clk 0:02:40]}  Be7 {[%clk 0:02:42]} 9. Be2 {[%clk 0:02:40]}  Nf6 {[%clk 0:02:41]} 10. O-O {[%clk 0:02:39]}  O-O {[%clk 0:02:41]} 11. Be3 {[%clk 0:02:30]}  Ne5 {[%clk 0:02:31]} 12. Qd4 {[%clk 0:02:06]}  Nc6 {[%clk 0:02:25]} 13. Qd2 {[%clk 0:02:02]}  Ne5 {[%clk 0:02:26]} 14. Qd4 {[%clk 0:01:59]}  Neg4 {[%clk 0:02:18]} 15. Bxg4 {[%clk 0:01:52]}  Nxg4 {[%clk 0:02:19]} 16. g3 {[%clk 0:01:43]}  Nxe3 {[%clk 0:02:04]} 17. Nxe3 {[%clk 0:01:26]}  b6 {[%clk 0:02:02]} 18. b3 {[%clk 0:01:24]}  Bb7 {[%clk 0:02:02]} 19. f3 {[%clk 0:01:22]}  d5 {[%clk 0:01:28]} 20. cxd5 {[%clk 0:01:16]}  Bf6 {[%clk 0:01:25]} 21. Qd3 {[%clk 0:00:58]}  Qxc3 {[%clk 0:01:24]} 0-1


[Site "https://www.chess.com"]

[Event "Titled Tuesday Blitz August 1 Early 2023"]
[White "Elissalt Cardenas, Hector"]
[Black "Koshulyan, Egor A."]
[WhiteFideId "3500632"]
[BlackFideId "24237000"]
[WhiteElo "2342"]
[BlackElo "2652"]
[Result "0-1"]
[Round "5"]
[TimeControl "180+1"]
[Date "2023.08.01"]
[WhiteClock "0:00:00"]
[BlackClock "0:00:51"]
[Board "178"]

1. d4 {[%clk 0:02:51]}  Nf6 {[%clk 0:02:59]} 2. c4 {[%clk 0:02:51]}  e5 {[%clk 0:02:59]} 3. dxe5 {[%clk 0:02:51]}  Ng4 {[%clk 0:03:00]} 4. e3 {[%clk 0:02:51]}  Nxe5 {[%clk 0:03:00]} 5. f4 {[%clk 0:02:51]}  Ng6 {[%clk 0:03:00]} 6. Nf3 {[%clk 0:02:51]}  Bc5 {[%clk 0:02:58]} 7. Bd3 {[%clk 0:02:50]}  Nc6 {[%clk 0:02:57]} 8. Nc3 {[%clk 0:02:47]}  d6 {[%clk 0:02:55]} 9. a3 {[%clk 0:02:31]}  a5 {[%clk 0:02:54]} 10. Bd2 {[%clk 0:02:28]}  O-O {[%clk 0:02:54]} 11. Ng5 {[%clk 0:02:25]}  h6 {[%clk 0:02:49]} 12. h4 {[%clk 0:02:07]}  Re8 {[%clk 0:02:36]} 13. Qf3 {[%clk 0:01:56]}  Nd4 {[%clk 0:02:29]} 14. Qg3 {[%clk 0:01:50]}  Nf5 {[%clk 0:02:26]} 15. Bxf5 {[%clk 0:01:46]}  Bxf5 {[%clk 0:02:27]} 16. O-O-O {[%clk 0:01:41]}  hxg5 {[%clk 0:02:20]} 17. hxg5 {[%clk 0:01:40]}  Qd7 {[%clk 0:02:19]} 18. Qh2 {[%clk 0:01:29]}  c6 {[%clk 0:02:04]} 19. Rde1 {[%clk 0:01:07]}  d5 {[%clk 0:02:02]} 20. g4 {[%clk 0:00:27]}  Bxg4 {[%clk 0:01:59]} 21. Na4 {[%clk 0:00:26]}  b6 {[%clk 0:01:52]} 22. Bc3 {[%clk 0:00:20]}  d4 {[%clk 0:01:13]} 23. exd4 {[%clk 0:00:18]}  Rxe1+ {[%clk 0:01:13]} 24. Rxe1 {[%clk 0:00:17]}  Bxd4 {[%clk 0:01:11]} 25. Rh1 {[%clk 0:00:08]}  Bxc3 {[%clk 0:01:08]} 26. Nxb6 {[%clk 0:00:07]}  Qd2+ {[%clk 0:01:05]} 27. Qxd2 {[%clk 0:00:07]}  Bxd2+ {[%clk 0:01:06]} 28. Kxd2 {[%clk 0:00:07]}  Rb8 {[%clk 0:01:06]} 29. c5 {[%clk 0:00:07]}  Bf5 {[%clk 0:00:59]} 30. b4 {[%clk 0:00:05]}  axb4 {[%clk 0:00:58]} 31. axb4 {[%clk 0:00:05]}  Nxf4 {[%clk 0:00:50]} 32. Rf1 {[%clk 0:00:04]}  Rd8+ {[%clk 0:00:51]} 33. Kc3 {[%clk 0:00:03]}  Nd5+ {[%clk 0:00:50]} 34. Nxd5 {[%clk 0:00:00]}  Rxd5 {[%clk 0:00:51]} 0-1


[Site "https://www.chess.com"]

[Event "Titled Tuesday Blitz August 1 Early 2023"]
[White "Hajiyev, Kanan"]
[Black "Jiganchine, Roman"]
[WhiteFideId "13404148"]
[BlackFideId "2603667"]
[WhiteElo "2558"]
[BlackElo "2315"]
[Result "1-0"]
[Round "5"]
[TimeControl "180+1"]
[Date "2023.08.01"]
[WhiteClock "0:02:23"]
[BlackClock "0:00:55"]
[Board "183"]

1. d4 {[%clk 0:03:00]}  d5 {[%clk 0:02:58]} 2. Nf3 {[%clk 0:03:01]}  Bf5 {[%clk 0:02:56]} 3. c4 {[%clk 0:03:02]}  c6 {[%clk 0:02:52]} 4. cxd5 {[%clk 0:03:01]}  cxd5 {[%clk 0:02:52]} 5. Nc3 {[%clk 0:03:01]}  e6 {[%clk 0:02:48]} 6. Qb3 {[%clk 0:02:59]}  Qb6 {[%clk 0:02:45]} 7. Qxb6 {[%clk 0:03:00]}  axb6 {[%clk 0:02:45]} 8. Bf4 {[%clk 0:03:01]}  Ne7 {[%clk 0:02:25]} 9. Nb5 {[%clk 0:02:58]}  Na6 {[%clk 0:02:13]} 10. e3 {[%clk 0:02:53]}  Nc6 {[%clk 0:02:09]} 11. a3 {[%clk 0:02:49]}  Be7 {[%clk 0:01:51]} 12. Be2 {[%clk 0:02:41]}  O-O {[%clk 0:01:39]} 13. O-O {[%clk 0:02:37]}  f6 {[%clk 0:01:32]} 14. Bd6 {[%clk 0:02:34]}  Rfe8 {[%clk 0:01:24]} 15. Bxe7 {[%clk 0:02:29]}  Rxe7 {[%clk 0:01:24]} 16. b4 {[%clk 0:02:30]}  Bc2 {[%clk 0:01:08]} 17. Rfc1 {[%clk 0:02:29]}  Ba4 {[%clk 0:01:01]} 18. Nc3 {[%clk 0:02:26]}  b5 {[%clk 0:00:59]} 19. Nxa4 {[%clk 0:02:23]}  bxa4 {[%clk 0:00:55]} 20. b5 {[%clk 0:02:23]} 1-0


[Site "https://www.chess.com"]

[Event "Titled Tuesday Blitz August 1 Early 2023"]
[White "Zaksaite, Salomeja"]
[Black "robertoalejandro10"]
[WhiteFideId "12801496"]
[WhiteElo "2313"]
[BlackElo "2558"]
[Result "0-1"]
[Round "5"]
[TimeControl "180+1"]
[Date "2023.08.01"]
[WhiteClock "0:00:00"]
[BlackClock "0:00:08"]
[Board "184"]

1. e4 {[%clk 0:02:54]}  c5 {[%clk 0:02:59]} 2. Nf3 {[%clk 0:02:53]}  g6 {[%clk 0:02:58]} 3. Bc4 {[%clk 0:02:52]}  Bg7 {[%clk 0:02:57]} 4. c3 {[%clk 0:02:51]}  Nc6 {[%clk 0:02:57]} 5. d4 {[%clk 0:02:49]}  cxd4 {[%clk 0:02:57]} 6. cxd4 {[%clk 0:02:44]}  d6 {[%clk 0:02:57]} 7. O-O {[%clk 0:02:38]}  Nf6 {[%clk 0:02:57]} 8. Nc3 {[%clk 0:02:35]}  O-O {[%clk 0:02:55]} 9. h3 {[%clk 0:02:34]}  Nxe4 {[%clk 0:02:55]} 10. Bxf7+ {[%clk 0:02:27]}  Rxf7 {[%clk 0:02:56]} 11. Nxe4 {[%clk 0:02:27]}  h6 {[%clk 0:02:56]} 12. Be3 {[%clk 0:02:23]}  g5 {[%clk 0:02:34]} 13. d5 {[%clk 0:02:17]}  Ne5 {[%clk 0:02:32]} 14. Nd4 {[%clk 0:02:17]}  Qa5 {[%clk 0:01:56]} 15. Ne6 {[%clk 0:01:59]}  Bxe6 {[%clk 0:01:45]} 16. dxe6 {[%clk 0:02:00]}  Rf5 {[%clk 0:01:46]} 17. Rc1 {[%clk 0:01:51]}  Raf8 {[%clk 0:01:40]} 18. Nxd6 {[%clk 0:01:06]}  exd6 {[%clk 0:01:18]} 19. e7 {[%clk 0:01:06]}  Re8 {[%clk 0:01:07]} 20. Qxd6 {[%clk 0:01:06]}  Nc6 {[%clk 0:00:57]} 21. b4 {[%clk 0:00:30]}  Qe5 {[%clk 0:00:53]} 22. Qg6 {[%clk 0:00:17]}  Rxe7 {[%clk 0:00:29]} 23. Rfe1 {[%clk 0:00:16]}  Qf6 {[%clk 0:00:21]} 24. Qh5 {[%clk 0:00:15]}  Rf7 {[%clk 0:00:19]} 25. b5 {[%clk 0:00:12]}  Rxb5 {[%clk 0:00:17]} 26. Qg4 {[%clk 0:00:05]}  Qf5 {[%clk 0:00:16]} 27. Qc4 {[%clk 0:00:04]}  Re5 {[%clk 0:00:10]} 28. Qb3 {[%clk 0:00:04]}  Kh7 {[%clk 0:00:07]} 29. Rcd1 {[%clk 0:00:01]}  Qe6 {[%clk 0:00:08]} 30. Qb1+ {[%clk 0:00:01]}  Qg6 {[%clk 0:00:07]} 31. Qb3 {[%clk 0:00:00]}  Re6 {[%clk 0:00:08]} 0-1


[Site "https://www.chess.com"]

[Event "Titled Tuesday Blitz August 1 Early 2023"]
[White "Ai, Evan"]
[Black "Ahmad, Khagan"]
[WhiteFideId "2094770"]
[BlackFideId "13431552"]
[WhiteElo "2310"]
[BlackElo "2557"]
[Result "0-1"]
[Round "5"]
[TimeControl "180+1"]
[Date "2023.08.01"]
[WhiteClock "0:00:12"]
[BlackClock "0:00:16"]
[Board "185"]

1. e4 {[%clk 0:02:47]}  c5 {[%clk 0:02:58]} 2. Nf3 {[%clk 0:02:46]}  e6 {[%clk 0:02:58]} 3. d4 {[%clk 0:02:46]}  cxd4 {[%clk 0:02:59]} 4. Nxd4 {[%clk 0:02:47]}  a6 {[%clk 0:02:58]} 5. Bd3 {[%clk 0:02:46]}  Nc6 {[%clk 0:02:56]} 6. Nxc6 {[%clk 0:02:44]}  bxc6 {[%clk 0:02:53]} 7. O-O {[%clk 0:02:44]}  d5 {[%clk 0:02:52]} 8. exd5 {[%clk 0:02:44]}  cxd5 {[%clk 0:02:52]} 9. c4 {[%clk 0:02:43]}  Nf6 {[%clk 0:02:47]} 10. Bg5 {[%clk 0:02:41]}  Be7 {[%clk 0:02:39]} 11. cxd5 {[%clk 0:02:19]}  Nxd5 {[%clk 0:02:37]} 12. Bxe7 {[%clk 0:02:18]}  Qxe7 {[%clk 0:02:37]} 13. Be4 {[%clk 0:02:13]}  Bb7 {[%clk 0:02:35]} 14. Qa4+ {[%clk 0:02:12]}  Qd7 {[%clk 0:02:29]} 15. Qxd7+ {[%clk 0:02:04]}  Kxd7 {[%clk 0:02:30]} 16. Rd1 {[%clk 0:01:56]}  Ke7 {[%clk 0:02:27]} 17. Na3 {[%clk 0:01:48]}  Rhd8 {[%clk 0:02:23]} 18. Nc4 {[%clk 0:01:47]}  Rac8 {[%clk 0:02:16]} 19. Rac1 {[%clk 0:01:45]}  Rc7 {[%clk 0:01:59]} 20. Kf1 {[%clk 0:01:34]}  Rdc8 {[%clk 0:01:54]} 21. b3 {[%clk 0:01:22]}  Ne3+ {[%clk 0:01:34]} 22. fxe3 {[%clk 0:01:23]}  Bxe4 {[%clk 0:01:34]} 23. Rd4 {[%clk 0:01:17]}  Bd5 {[%clk 0:01:26]} 24. g3 {[%clk 0:01:09]}  f6 {[%clk 0:01:18]} 25. Ke2 {[%clk 0:01:00]}  Bxc4+ {[%clk 0:01:12]} 26. Rdxc4 {[%clk 0:01:01]}  Rxc4 {[%clk 0:01:12]} 27. Rxc4 {[%clk 0:01:01]}  Rxc4 {[%clk 0:01:06]} 28. bxc4 {[%clk 0:01:02]}  Kd6 {[%clk 0:01:06]} 29. Kd3 {[%clk 0:01:03]}  Kc5 {[%clk 0:01:07]} 30. Kc3 {[%clk 0:01:03]}  f5 {[%clk 0:01:02]} 31. a3 {[%clk 0:01:00]}  a5 {[%clk 0:00:43]} 32. h3 {[%clk 0:00:56]}  e5 {[%clk 0:00:43]} 33. g4 {[%clk 0:00:54]}  g6 {[%clk 0:00:42]} 34. g5 {[%clk 0:00:54]}  a4 {[%clk 0:00:34]} 35. Kd3 {[%clk 0:00:50]}  f4 {[%clk 0:00:34]} 36. exf4 {[%clk 0:00:30]}  exf4 {[%clk 0:00:35]} 37. Ke4 {[%clk 0:00:30]}  Kxc4 {[%clk 0:00:33]} 38. Kxf4 {[%clk 0:00:30]}  Kb3 {[%clk 0:00:33]} 39. Ke5 {[%clk 0:00:31]}  Kxa3 {[%clk 0:00:32]} 40. Kf6 {[%clk 0:00:32]}  Kb3 {[%clk 0:00:32]} 41. Kg7 {[%clk 0:00:32]}  a3 {[%clk 0:00:32]} 42. Kxh7 {[%clk 0:00:33]}  a2 {[%clk 0:00:33]} 43. Kxg6 {[%clk 0:00:33]}  a1=Q {[%clk 0:00:34]} 44. h4 {[%clk 0:00:33]}  Kc4 {[%clk 0:00:34]} 45. h5 {[%clk 0:00:32]}  Kd5 {[%clk 0:00:34]} 46. Kh7 {[%clk 0:00:30]}  Ke6 {[%clk 0:00:34]} 47. g6 {[%clk 0:00:30]}  Qa7+ {[%clk 0:00:32]} 48. g7 {[%clk 0:00:28]}  Kf6 {[%clk 0:00:32]} 49. h6 {[%clk 0:00:28]}  Kg5 {[%clk 0:00:21]} 50. Kh8 {[%clk 0:00:18]}  Kxh6 {[%clk 0:00:20]} 51. g8=Q {[%clk 0:00:12]}  Qa1+ {[%clk 0:00:16]} 0-1


[Site "https://www.chess.com"]

[Event "Titled Tuesday Blitz August 1 Early 2023"]
[White "Nurgaliyeva, Zarina"]
[Black "Szente Varga, Fruzsina"]
[WhiteFideId "13730096"]
[BlackFideId "712264"]
[WhiteElo "2542"]
[BlackElo "2310"]
[Result "1-0"]
[Round "5"]
[TimeControl "180+1"]
[Date "2023.08.01"]
[WhiteClock "0:01:02"]
[BlackClock "0:01:02"]
[Board "186"]

1. e4 {[%clk 0:03:00]}  c5 {[%clk 0:02:57]} 2. Nf3 {[%clk 0:03:01]}  Nc6 {[%clk 0:02:57]} 3. Bb5 {[%clk 0:03:01]}  g6 {[%clk 0:02:57]} 4. O-O {[%clk 0:03:01]}  Bg7 {[%clk 0:02:57]} 5. Nc3 {[%clk 0:03:01]}  d6 {[%clk 0:02:52]} 6. e5 {[%clk 0:02:58]}  dxe5 {[%clk 0:02:47]} 7. Bxc6+ {[%clk 0:02:58]}  bxc6 {[%clk 0:02:47]} 8. Re1 {[%clk 0:02:56]}  Bg4 {[%clk 0:02:45]} 9. h3 {[%clk 0:02:51]}  Bxf3 {[%clk 0:02:45]} 10. Qxf3 {[%clk 0:02:51]}  Qc7 {[%clk 0:02:41]} 11. d3 {[%clk 0:02:44]}  Rd8 {[%clk 0:02:39]} 12. Be3 {[%clk 0:02:36]}  c4 {[%clk 0:02:34]} 13. Ne4 {[%clk 0:02:23]}  cxd3 {[%clk 0:02:06]} 14. cxd3 {[%clk 0:02:24]}  Nf6 {[%clk 0:02:05]} 15. Nxf6+ {[%clk 0:02:04]}  exf6 {[%clk 0:01:59]} 16. Rac1 {[%clk 0:02:01]}  O-O {[%clk 0:01:57]} 17. Rxc6 {[%clk 0:01:58]}  Qa5 {[%clk 0:01:57]} 18. Rec1 {[%clk 0:01:51]}  Qxa2 {[%clk 0:01:43]} 19. b4 {[%clk 0:01:23]}  Rxd3 {[%clk 0:01:38]} 20. Qe4 {[%clk 0:01:16]}  Rfd8 {[%clk 0:01:35]} 21. Qxd3 {[%clk 0:01:02]}  Rxd3 {[%clk 0:01:12]} 22. Rc8+ {[%clk 0:01:02]}  Bf8 {[%clk 0:01:02]} 23. Bh6 {[%clk 0:01:02]} 1-0


[Site "https://www.chess.com"]

[Event "Titled Tuesday Blitz August 1 Early 2023"]
[White "Streltsov, Alexey"]
[Black "Ardila, Oscar Humberto"]
[WhiteFideId "24104434"]
[BlackFideId "4404742"]
[WhiteElo "2516"]
[BlackElo "2303"]
[Result "1-0"]
[Round "5"]
[TimeControl "180+1"]
[Date "2023.08.01"]
[WhiteClock "0:01:55"]
[BlackClock "0:01:05"]
[Board "189"]

1. d4 {[%clk 0:02:57]}  Nf6 {[%clk 0:02:55]} 2. Nc3 {[%clk 0:02:56]}  e6 {[%clk 0:02:56]} 3. e4 {[%clk 0:02:56]}  Bb4 {[%clk 0:02:51]} 4. e5 {[%clk 0:02:55]}  Nd5 {[%clk 0:02:51]} 5. Bd2 {[%clk 0:02:56]}  Nxc3 {[%clk 0:02:50]} 6. bxc3 {[%clk 0:02:57]}  Be7 {[%clk 0:02:50]} 7. f4 {[%clk 0:02:56]}  d6 {[%clk 0:02:49]} 8. Nf3 {[%clk 0:02:57]}  c5 {[%clk 0:02:48]} 9. Bd3 {[%clk 0:02:54]}  Nc6 {[%clk 0:02:47]} 10. O-O {[%clk 0:02:53]}  Qb6 {[%clk 0:02:45]} 11. Be3 {[%clk 0:02:52]}  cxd4 {[%clk 0:02:44]} 12. cxd4 {[%clk 0:02:51]}  O-O {[%clk 0:02:36]} 13. Qd2 {[%clk 0:02:51]}  dxe5 {[%clk 0:02:30]} 14. fxe5 {[%clk 0:02:46]}  Nb4 {[%clk 0:02:20]} 15. Rab1 {[%clk 0:02:43]}  Qa5 {[%clk 0:02:06]} 16. a3 {[%clk 0:02:39]}  Nc6 {[%clk 0:02:06]} 17. c3 {[%clk 0:02:35]}  Rd8 {[%clk 0:01:30]} 18. Qf2 {[%clk 0:02:25]}  f5 {[%clk 0:01:19]} 19. exf6 {[%clk 0:02:08]}  Bxf6 {[%clk 0:01:19]} 20. Ng5 {[%clk 0:02:09]}  h6 {[%clk 0:01:12]} 21. Ne4 {[%clk 0:02:09]}  Rf8 {[%clk 0:01:10]} 22. Bxh6 {[%clk 0:02:01]}  Qd8 {[%clk 0:01:08]} 23. Qg3 {[%clk 0:01:56]}  e5 {[%clk 0:01:05]} 24. Nxf6+ {[%clk 0:01:55]}  Rxf6 {[%clk 0:01:05]} 25. Qxg7# {[%clk 0:01:55]} 1-0


[Site "https://www.chess.com"]

[Event "Titled Tuesday Blitz August 1 Early 2023"]
[White "Ziatdinov, Raset"]
[Black "Shapiro, Viktor"]
[WhiteFideId "2015323"]
[BlackFideId "4175700"]
[WhiteElo "2301"]
[BlackElo "2511"]
[Result "0-1"]
[Round "5"]
[TimeControl "180+1"]
[Date "2023.08.01"]
[WhiteClock "0:00:13"]
[BlackClock "0:01:50"]
[Board "190"]

1. e4 {[%clk 0:02:18]}  Nf6 {[%clk 0:02:52]} 2. e5 {[%clk 0:02:17]}  Nd5 {[%clk 0:02:51]} 3. d4 {[%clk 0:02:18]}  d6 {[%clk 0:02:52]} 4. c4 {[%clk 0:02:18]}  Nb6 {[%clk 0:02:52]} 5. f4 {[%clk 0:02:19]}  dxe5 {[%clk 0:02:52]} 6. fxe5 {[%clk 0:02:19]}  c5 {[%clk 0:02:52]} 7. d5 {[%clk 0:02:17]}  g6 {[%clk 0:02:52]} 8. Nc3 {[%clk 0:02:14]}  Bg7 {[%clk 0:02:52]} 9. Nf3 {[%clk 0:02:14]}  Bg4 {[%clk 0:02:52]} 10. Bf4 {[%clk 0:02:13]}  O-O {[%clk 0:02:50]} 11. h3 {[%clk 0:02:10]}  Bxf3 {[%clk 0:02:50]} 12. Qxf3 {[%clk 0:02:10]}  e6 {[%clk 0:02:50]} 13. d6 {[%clk 0:02:10]}  Nc6 {[%clk 0:02:48]} 14. Qg3 {[%clk 0:01:48]}  Nd7 {[%clk 0:02:46]} 15. O-O-O {[%clk 0:01:42]}  Ndxe5 {[%clk 0:02:40]} 16. Be2 {[%clk 0:01:24]}  Qa5 {[%clk 0:02:35]} 17. Kb1 {[%clk 0:01:21]}  Rad8 {[%clk 0:02:33]} 18. h4 {[%clk 0:01:11]}  Qb4 {[%clk 0:02:26]} 19. h5 {[%clk 0:00:40]}  Nxc4 {[%clk 0:02:23]} 20. Bxc4 {[%clk 0:00:41]}  Qxc4 {[%clk 0:02:23]} 21. hxg6 {[%clk 0:00:39]}  fxg6 {[%clk 0:02:22]} 22. Bg5 {[%clk 0:00:38]}  Rd7 {[%clk 0:02:16]} 23. Rh4 {[%clk 0:00:37]}  Bd4 {[%clk 0:02:04]} 24. Rdh1 {[%clk 0:00:31]}  Rf1+ {[%clk 0:02:02]} 25. Kc2 {[%clk 0:00:27]}  Nb4+ {[%clk 0:02:00]} 26. Kd2 {[%clk 0:00:27]}  Rf2+ {[%clk 0:01:55]} 27. Qxf2 {[%clk 0:00:24]}  Qd3+ {[%clk 0:01:51]} 28. Kc1 {[%clk 0:00:13]}  Bxf2 {[%clk 0:01:50]} 0-1


[Site "https://www.chess.com"]

[Event "Titled Tuesday Blitz August 1 Early 2023"]
[White "Warchol, Kamil"]
[Black "Tokman, Ariel"]
[WhiteFideId "21858241"]
[BlackFideId "117420"]
[WhiteElo "2269"]
[BlackElo "2485"]
[Result "0-1"]
[Round "5"]
[TimeControl "180+1"]
[Date "2023.08.01"]
[WhiteClock "0:00:11"]
[BlackClock "0:00:12"]
[Board "195"]

1. e4 {[%clk 0:02:53]}  Nf6 {[%clk 0:02:57]} 2. e5 {[%clk 0:02:53]}  Nd5 {[%clk 0:02:57]} 3. d4 {[%clk 0:02:52]}  d6 {[%clk 0:02:57]} 4. Nf3 {[%clk 0:02:50]}  Bg4 {[%clk 0:02:55]} 5. Be2 {[%clk 0:02:45]}  e6 {[%clk 0:02:51]} 6. O-O {[%clk 0:02:43]}  Be7 {[%clk 0:02:46]} 7. h3 {[%clk 0:02:42]}  Bxf3 {[%clk 0:02:46]} 8. Bxf3 {[%clk 0:02:42]}  dxe5 {[%clk 0:02:45]} 9. c4 {[%clk 0:02:28]}  Nb6 {[%clk 0:02:37]} 10. Bxb7 {[%clk 0:02:26]}  exd4 {[%clk 0:02:37]} 11. Bxa8 {[%clk 0:02:15]}  Nxa8 {[%clk 0:02:38]} 12. Qa4+ {[%clk 0:02:12]}  Nd7 {[%clk 0:02:17]} 13. Qxa7 {[%clk 0:02:07]}  Nab6 {[%clk 0:02:18]} 14. b3 {[%clk 0:01:38]}  O-O {[%clk 0:02:15]} 15. Bb2 {[%clk 0:01:29]}  e5 {[%clk 0:02:08]} 16. Qb7 {[%clk 0:01:23]}  Nc5 {[%clk 0:02:05]} 17. Qc6 {[%clk 0:01:09]}  f5 {[%clk 0:01:26]} 18. Nd2 {[%clk 0:01:03]}  Rf6 {[%clk 0:01:25]} 19. Qf3 {[%clk 0:00:58]}  e4 {[%clk 0:01:23]} 20. Qd1 {[%clk 0:00:57]}  Nd3 {[%clk 0:01:13]} 21. Rb1 {[%clk 0:00:50]}  Rg6 {[%clk 0:01:06]} 22. Kh1 {[%clk 0:00:42]}  c5 {[%clk 0:00:35]} 23. a4 {[%clk 0:00:30]}  Bd6 {[%clk 0:00:33]} 24. a5 {[%clk 0:00:28]}  Qh4 {[%clk 0:00:19]} 25. axb6 {[%clk 0:00:18]}  Rxg2 {[%clk 0:00:18]} 26. Kxg2 {[%clk 0:00:13]}  Nf4+ {[%clk 0:00:18]} 27. Kg1 {[%clk 0:00:12]}  Nxh3+ {[%clk 0:00:15]} 28. Kg2 {[%clk 0:00:12]}  Nf4+ {[%clk 0:00:14]} 29. Kg1 {[%clk 0:00:11]}  Qg5+ {[%clk 0:00:12]} 0-1


[Site "https://www.chess.com"]